bitfinex/quotes_SOLUSD_20240718
["timestamp","ask_amount","ask_price","bid_price","bid_amount"]
[1721280984481,12.28,158.29,158.24,6.3194]
[1721280984682,20.17717271,158.29,158.24,6.3194]
[1721280985182,12.28,158.28,158.24,6.3194]
[1721280985383,12.28,158.28,158.23,22.119]
[1721280985593,12.28,158.27,158.23,22.119]
[1721280985795,12.28,158.28,158.24,6.3193]
[1721280986489,12.28,158.27,158.23,15.7992]
[1721280986683,20.1779666,158.27,158.23,15.7992]
[1721280986897,13.8596666,158.27,158.23,15.7992]
[1721280987096,1.57973925,158.26,158.23,15.7992]
[1721280987298,12.28,158.25,158.21,0.8125976]
[1721280987491,12.28,158.24,158.21,0.8125976]
[1721280988097,1.57993939,158.23,158.21,0.8125976]
[1721280988502,13.85993939,158.23,158.21,0.8125976]
[1721280988700,12.28,158.22,158.21,0.8125976]
[1721280989286,12.28,158.23,158.21,0.8125976]
[1721280989598,13.86009733,158.24,158.21,0.8125976]
[1721280989794,13.86005561,158.23,158.21,0.8125976]
[1721280989987,72.64091539,158.41,158.23,10.0]
[1721280989988,1.58013949,158.31,158.23,10.0]
[1721280990289,12.28,158.32,158.29,6.3174]
[1721280990496,21.1834,158.33,158.29,6.3174]
[1721280990497,33.4634,158.33,158.29,6.3174]
[1721280991105,7.89380818,158.37,158.31,6.3166]
[1721280991289,12.28,158.35,158.32,1.26317028]
[1721280991490,12.28,158.35,158.31,7.57969802]
[1721280991692,12.28,158.35,158.3,34.3897]
[1721280992007,13.85890907,158.34,158.3,22.1097]
[1721280992209,1.57890907,158.34,158.3,15.7927]
[1721280992619,7.89440907,158.34,158.26,6.6253]
[1721280992824,7.89440907,158.34,158.28,6.3178]
[1721280993112,6.3155,158.34,158.29,1.26338341]
[1721280993690,6.3155,158.34,158.29,7.58068341]
[1721280994004,6.3155,158.34,158.29,6.3173]
[1721280994312,6.3155,158.34,158.28,6.3178]
[1721280994609,6.3159,158.33,158.28,6.3178]
[1721280995591,6.3155,158.34,158.28,6.3178]
[1721280996026,6.3159,158.33,158.28,6.3178]
[1721280996195,1.57937666,158.32,158.27,6.3182]
[1721280997704,1.57937666,158.32,158.28,6.3177]
[1721280997899,1.57931147,158.35,158.29,6.3174]
[1721280999009,6.315,158.36,158.3,1.26331862]
[1721280999212,1.57900377,158.35,158.3,1.26331862]
[1721280999427,1.57900377,158.35,158.29,15.7937]
[1721280999723,1.57900377,158.35,158.3,1.2632049]
[1721281000231,1.57900377,158.35,158.31,6.3167]
[1721281001342,1.57888185,158.37,158.32,7.5793033]
[1721281001703,6.3139,158.38,158.33,7.57887115]
[1721281002614,1.57871905,158.37,158.32,6.3162]
[1721281003615,7.89301905,158.37,158.32,6.3162]
[1721281004319,6.314,158.38,158.33,7.57883046]
[1721281004914,7.89299666,158.37,158.32,6.3163]
[1721281005110,6.3143,158.37,158.32,6.3163]
[1721281007808,6.3139,158.38,158.32,6.3163]
[1721281008011,6.3139,158.38,158.33,6.3159]
[1721281008448,1.57871662,158.41,158.34,1.26289582]
[1721281008628,1.57871662,158.41,158.38,6.3139]
[1721281008831,1.57871662,158.41,158.35,15.7869]
[1721281009147,1.57871662,158.41,158.36,7.57732421]
[1721281009335,29.19690527,158.42,158.36,7.57732421]
[1721281009529,22.88450527,158.42,158.36,7.57732421]
[1721281009751,6.3128,158.41,158.36,7.57732421]
[1721281010533,7.89111945,158.41,158.36,7.57732421]
[1721281010736,27.6184,158.42,158.37,6.3143]
[1721281011036,27.6184,158.42,158.38,1.26258854]
[1721281011231,21.3061,158.42,158.38,6.3139]
[1721281011634,21.3061,158.42,158.35,25.7869]
[1721281011819,27.6184,158.42,158.37,6.3142]
[1721281013724,21.3061,158.42,158.38,6.3138]
[1721281014048,21.3061,158.42,158.39,1.26251753]
[1721281014223,21.3061,158.42,158.37,6.3142]
[1721281014826,27.6185,158.42,158.37,6.3142]
[1721281015128,1.57815876,158.46,158.37,6.3142]
[1721281015129,24.40515876,158.46,158.38,1.26253187]
[1721281015323,22.827,158.46,158.42,6.3122]
[1721281015535,6.3103,158.47,158.43,1.26220545]
[1721281015732,7.88780602,158.49,158.43,1.26220545]
[1721281016051,7.88767407,158.48,158.43,7.57410545]
[1721281016253,7.88727185,158.49,158.43,7.57410545]
[1721281017054,6.3099,158.48,158.43,7.57410545]
[1721281017438,6.3099,158.48,158.43,6.3119]
[1721281018244,6.3095,158.49,158.44,7.57350072]
[1721281018447,1.57754418,158.53,158.44,1.26210072]
[1721281018750,1.57754418,158.53,158.46,6.3107]
[1721281018751,6.3083,158.52,158.46,6.3107]
[1721281018929,7.88554418,158.53,158.47,1.26187331]
[1721281019135,7.88554418,158.53,158.48,6.3098]
[1721281019348,7.88554418,158.53,158.49,1.26172078]
[1721281019943,15.0516,158.54,158.49,7.57122078]
[1721281020142,16.62862216,158.54,158.49,7.57122078]
[1721281020358,22.93612216,158.54,158.49,6.3095]
[1721281020549,16.62862216,158.54,158.47,10.0]
[1721281020858,15.0516,158.54,158.5,6.3091]
[1721281021043,7.88363325,158.57,158.51,7.57025539]
[1721281021251,7.88363325,158.57,158.52,1.26152451]
[1721281021561,6.3068,158.56,158.52,1.26153985]
[1721281021770,1.57703325,158.57,158.52,1.26152969]
[1721281021959,22.90509955,158.58,158.52,7.56962969]
[1721281022166,7.88322425,158.57,158.5,6.3087]
[1721281022473,1.57672425,158.57,158.52,6.3082]
[1721281022852,1.57672425,158.57,158.5,6.3087]
[1721281022853,7.88312425,158.57,158.5,6.3087]
[1721281023082,1.57672425,158.57,158.5,6.3087]
[1721281023472,21.3283,158.58,158.5,6.3087]
[1721281023473,27.6346,158.58,158.5,1.26148999]
[1721281023805,27.6346,158.58,158.5,46.26148999]
[1721281024172,1.57672353,158.57,158.5,46.26148999]
[1721281024575,1.57672353,158.57,158.5,45.0]
[1721281024804,7.88322353,158.57,158.5,51.3087]
[1721281024973,7.88322353,158.57,158.51,6.3085]
[1721281025593,6.3067,158.56,158.51,6.3085]
[1721281025905,6.3081,158.53,158.48,6.3099]
[1721281026114,6.3075,158.54,158.48,6.3099]
[1721281026300,7.88464146,158.54,158.48,6.3099]
[1721281026474,1.57714146,158.53,158.48,6.3099]
[1721281027078,6.3075,158.54,158.48,6.3099]
[1721281027285,6.3075,158.54,158.49,6.3095]
[1721281027489,6.3075,158.54,158.48,6.3099]
[1721281027890,6.3085,158.52,158.46,6.3103]
[1721281028102,1.5772711,158.51,158.46,6.3103]
[1721281028285,1.57728304,158.57,158.46,6.3103]
[1721281028487,6.3088,158.51,158.45,22.0883]
[1721281029083,1.5773654,158.5,158.41,15.7813]
[1721281029482,1.5773654,158.5,158.44,15.7787]
[1721281029791,7.8865654,158.5,158.45,6.311]
[1721281029981,7.8865654,158.5,158.44,15.7787]
[1721281030382,7.8865654,158.5,158.45,7.57304055]
[1721281030782,1.5773654,158.5,158.45,7.57304055]
[1721281031192,1.5773654,158.5,158.44,15.7787]
[1721281031515,6.31,158.48,158.42,6.3122]
[1721281031821,1.57769502,158.47,158.4,15.7823]
[1721281031977,1.57769502,158.47,158.37,24.55]
[1721281032184,6.3111,158.45,158.39,6.3131]
[1721281032402,1.57802899,158.44,158.39,6.3131]
[1721281032998,23.35302899,158.44,158.37,7.57654787]
[1721281033187,1.57827088,158.43,158.38,1.2626167]
[1721281033616,1.57827088,158.43,158.36,15.7859]
[1721281034419,1.57827088,158.43,158.37,1.26251936]
[1721281034591,1.57827088,158.43,158.36,15.7859]
[1721281034993,1.57815995,158.42,158.37,6.314]
[1721281035640,7.89065995,158.42,158.36,22.1005]
[1721281036005,6.3125,158.42,158.36,22.1005]
[1721281036231,28.0869,158.44,158.36,15.7859]
[1721281036405,1.57837879,158.43,158.36,15.7859]
[1721281036606,1.57837879,158.42,158.36,15.7859]
[1721281037010,7.89067879,158.42,158.37,6.3142]
[1721281037209,1.57837879,158.42,158.37,6.3142]
[1721281037937,7.89087879,158.42,158.36,15.7859]
[1721281038139,6.3125,158.42,158.36,15.7859]
[1721281038820,6.3119,158.43,158.37,1.26270683]
[1721281039020,1.57837242,158.42,158.37,1.26270683]
[1721281039732,1.57837242,158.42,158.36,15.7859]
[1721281039941,1.57824618,158.43,158.39,6.3134]
[1721281040750,7.89014618,158.43,158.37,7.57649694]
[1721281041444,21.775,158.44,158.37,11.26259694]
[1721281041747,1.57805255,158.43,158.38,6.3135]
[1721281041952,21.775,158.44,158.39,6.3134]
[1721281042249,21.775,158.44,158.4,6.313]
[1721281042423,21.775,158.44,158.4,7.57543735]
[1721281044459,21.775,158.44,158.4,1.26243735]
[1721281044460,15.5225,158.44,158.4,1.26243735]
[1721281044759,22.4565,158.48,158.42,15.7803]
[1721281044955,22.4565,158.48,158.44,6.3114]
[1721281045246,22.4565,158.48,158.45,1.26201236]
[1721281045423,22.4565,158.48,158.46,1.26200846]
[1721281046554,22.4565,158.48,158.42,15.7803]
[1721281046766,6.3103,158.47,158.43,1.26159938]
[1721281047333,22.4565,158.48,158.43,1.26159938]
[1721281047631,6.3108,158.46,158.42,15.7803]
[1721281047842,7.88798554,158.47,158.42,22.0925]
[1721281048048,22.4565,158.48,158.43,7.5739412]
[1721281048049,28.7664,158.48,158.43,7.5739412]
[1721281048456,28.7664,158.48,158.43,6.3118]
[1721281048629,6.3104,158.47,158.42,22.0926]
[1721281049840,28.7664,158.48,158.43,6.3118]
[1721281050037,22.4565,158.48,158.45,6.311]
[1721281050354,22.4565,158.48,158.44,1.26207708]
[1721281050355,22.4565,158.48,158.46,1.26202117]
[1721281050540,22.4565,158.48,158.44,6.3115]
[1721281050541,1.5775976,158.51,158.47,1.26202142]
[1721281050746,24.14682678,158.52,158.47,1.26202142]
[1721281050957,22.5693,158.52,158.47,1.26202142]
[1721281051134,16.2607,158.52,158.47,7.57222142]
[1721281051337,6.3788,158.53,158.48,6.3095]
[1721281051666,6.3788,158.53,158.49,1.26162847]
[1721281052158,12.6868,158.53,158.49,1.26166736]
[1721281052544,6.3788,158.53,158.5,1.2616645]
[1721281052746,7.88458063,158.55,158.5,1.2616645]
[1721281053235,6.3075,158.54,158.48,22.0846]
[1721281053545,6.3071,158.55,158.48,25.7747]
[1721281053745,16.2607,158.56,158.48,25.7747]
[1721281053958,16.2607,158.56,158.49,46.60148029]
[1721281054662,6.0668,158.57,158.52,6.3082]
[1721281054836,6.0668,158.57,158.51,15.7718]
[1721281055144,6.3063,158.58,158.53,6.3079]
[1721281055351,1.57681171,158.59,158.53,6.3079]
[1721281055552,6.3061,158.58,158.52,6.3083]
[1721281056448,17.85820345,158.6,158.55,6.3071]
[1721281056630,17.85820345,158.6,158.55,7.5682772]
[1721281056834,24.16330345,158.6,158.54,22.0763]
[1721281057335,24.16340345,158.6,158.54,22.0763]
[1721281057955,22.5868,158.6,158.54,32.0763]
[1721281058754,24.1631853,158.6,158.54,22.0763]
[1721281058959,6.3058,158.59,158.54,15.7688]
[1721281059137,6.306,158.58,158.52,16.3083]
[1721281059337,1.57652428,158.57,158.51,0.34]
[1721281059539,6.307,158.56,158.5,15.772]
[1721281059739,6.3067,158.56,158.5,15.772]
[1721281060538,1.57690994,158.55,158.5,15.772]
[1721281060752,1.57694395,158.54,158.5,15.772]
[1721281060949,15.7649,158.58,158.46,50.42223936]
[1721281061153,6.3075,158.54,158.48,6.3099]
[1721281061359,6.307,158.56,158.49,15.7737]
[1721281061557,1.5769117,158.55,158.5,6.3087]
[1721281062061,1.5769117,158.55,158.49,15.7737]
[1721281062062,1.5769441,158.54,158.49,15.7737]
[1721281062240,1.57706094,158.54,158.49,15.7737]
[1721281062453,6.3068,158.56,158.5,6.3091]
[1721281062659,6.3068,158.56,158.51,6.3085]
[1721281062955,6.3064,158.57,158.52,1.26150822]
[1721281063281,7.88324037,158.57,158.51,6.3087]
[1721281063567,7.88324037,158.57,158.52,1.2615052]
[1721281063762,6.3064,158.57,158.52,7.5696052]
[1721281064271,1.5768025,158.56,158.52,6.3081]
[1721281064566,7.8835025,158.56,158.49,15.7737]
[1721281064767,1.57688321,158.55,158.5,6.309]
[1721281066956,6.3062,158.58,158.52,6.3083]
[1721281067150,7.88310001,158.57,158.52,6.3083]
[1721281067471,6.3069,158.56,158.51,6.3086]
[1721281067660,1.57688498,158.55,158.5,6.3091]
[1721281067864,1.57688413,158.54,158.49,22.0831]
[1721281068162,6.3071,158.55,158.5,7.57057057]
[1721281068761,6.3071,158.55,158.5,6.3089]
[1721281068958,6.3071,158.55,158.49,22.0832]
[1721281069472,6.3071,158.55,158.5,6.3091]
[1721281070473,14.40516381,158.54,158.49,15.7737]
[1721281071046,14.40516381,158.54,158.49,22.0832]
[1721281071472,8.09766381,158.54,158.5,6.3091]
[1721281072369,8.09766381,158.54,158.5,7.5707646]
[1721281072567,6.5207,158.54,158.51,6.3087]
[1721281074476,6.5207,158.54,158.5,6.3091]
[1721281074778,8.09775467,158.54,158.5,7.57074374]
[1721281074962,6.5207,158.54,158.5,7.57074374]
[1721281075275,6.5207,158.54,158.51,6.3087]
[1721281075659,6.5207,158.54,158.5,6.3091]
[1721281075857,8.09770582,158.54,158.5,6.3091]
[1721281076872,6.5207,158.54,158.5,6.3091]
[1721281078987,6.5207,158.54,158.51,1.26160545]
[1721281079671,6.5207,158.54,158.5,6.3091]
[1721281080480,6.5207,158.54,158.5,18.5491]
[1721281080865,1.57700646,158.53,158.49,15.7737]
[1721281081071,13.81700646,158.53,158.49,15.7737]
[1721281081263,41.2339,158.54,158.49,34.3231]
[1721281081573,1.57706795,158.53,158.45,15.7774]
[1721281081790,6.3091,158.51,158.46,18.5507]
[1721281081958,7.8865533,158.51,158.47,12.24]
[1721281082366,6.3091,158.51,158.47,12.24]
[1721281082680,6.3091,158.51,158.48,12.24]
[1721281082987,7.88651374,158.51,158.48,12.24]
[1721281083487,7.88571275,158.52,158.48,12.24]
[1721281083991,1.57741275,158.52,158.48,12.24]
[1721281084872,22.6864,158.54,158.5,12.24]
[1721281085085,22.6864,158.54,158.51,13.50166217]
[1721281085292,22.6864,158.54,158.51,12.24]
[1721281085577,22.6864,158.54,158.52,12.24]
[1721281085978,16.1657,158.54,158.52,12.24]
[1721281086296,16.1657,158.54,158.51,1.26157271]
[1721281086466,16.1657,158.54,158.5,1.26154618]
[1721281087084,16.1657,158.54,158.51,6.3087]
[1721281087666,16.1657,158.54,158.49,22.0821]
[1721281087888,16.1657,158.54,158.5,1.26154922]
[1721281088073,24.05013777,158.54,158.49,22.0821]
[1721281089786,24.05013777,158.54,158.49,15.7729]
[1721281090384,24.05013777,158.54,158.49,22.0822]
[1721281090984,6.308,158.53,158.49,15.7729]
[1721281091192,7.96650241,158.52,158.47,6.31]
[1721281091408,1.57730987,158.51,158.47,6.31]
[1721281091768,1.57730987,158.51,158.48,6.3097]
[1721281092199,6.3892,158.52,158.49,6.3094]
[1721281092704,1.57730691,158.51,158.48,22.0845]
[1721281093495,16.1657,158.54,158.49,1.26175285]
[1721281093999,16.1657,158.54,158.52,6.3082]
[1721281094690,1.57719106,158.56,158.52,6.3082]
[1721281094899,6.2154,158.57,158.54,6.3074]
[1721281095991,15.5605,158.58,158.55,6.307]
[1721281096304,15.5605,158.58,158.56,15.7668]
[1721281096485,1.57648743,158.6,158.56,15.7668]
[1721281096795,6.2494,158.61,158.57,1.26112968]
[1721281096796,7.8258121,158.61,158.57,1.26112968]
[1721281096993,14.1306121,158.61,158.56,22.0734]
[1721281097491,1.57641359,158.6,158.56,15.7668]
[1721281098002,1.57641359,158.6,158.53,25.7698]
[1721281098175,7.88151359,158.6,158.54,6.3075]
[1721281098885,7.88151359,158.6,158.53,25.7698]
[1721281098886,1.57641359,158.6,158.55,6.3069]
[1721281100592,14.13048974,158.61,158.56,6.3067]
[1721281100984,6.2494,158.61,158.57,6.3063]
[1721281101585,6.2494,158.61,158.58,6.3059]
[1721281101802,16.4543,158.62,158.59,1.26091798]
[1721281102975,16.4543,158.62,158.59,7.56631798]
[1721281103405,6.3661,158.65,158.59,1.26091798]
[1721281103708,7.87961071,158.64,158.59,7.56638857]
[1721281103884,7.87961071,158.64,158.59,6.3055]
[1721281104606,6.3042,158.63,158.58,22.0707]
[1721281105208,7.88054777,158.62,158.58,15.7648]
[1721281105398,6.3044,158.62,158.58,15.7648]
[1721281105927,6.3044,158.62,158.56,6.3067]
[1721281106799,6.3661,158.65,158.56,6.3067]
[1721281106800,6.3049,158.61,158.56,6.3067]
[1721281107120,1.57645917,158.6,158.56,6.3067]
[1721281107927,6.3055,158.59,158.55,15.7677]
[1721281108103,21.9412,158.6,158.55,15.7677]
[1721281108427,15.636,158.6,158.56,6.3066]
[1721281108595,17.21244811,158.6,158.56,6.3066]
[1721281108795,17.21244811,158.6,158.55,22.0748]
[1721281109204,6.3056,158.59,158.55,15.7677]
[1721281109521,15.636,158.6,158.55,15.7677]
[1721281109734,17.2124958,158.6,158.55,15.7677]
[1721281110017,1.57649644,158.64,158.58,15.7645]
[1721281110520,1.57649644,158.64,158.6,6.305]
[1721281111229,28.3841,158.65,158.61,1.2608866]
[1721281111429,22.0808,158.65,158.61,7.5654866]
[1721281111603,22.0808,158.65,158.61,6.3046]
[1721281112022,22.0808,158.65,158.6,6.3051]
[1721281112231,22.0808,158.65,158.61,1.2607698]
[1721281112728,23.65676596,158.65,158.61,1.2607698]
[1721281112898,6.3026,158.67,158.62,6.3041]
[1721281113102,7.87840038,158.67,158.62,7.56474031]
[1721281113510,7.87840038,158.67,158.62,1.26064031]
[1721281114013,6.3026,158.67,158.62,7.56494031]
[1721281116130,6.3026,158.67,158.62,1.26064031]
[1721281116330,6.3029,158.66,158.62,45.0]
[1721281118126,6.3029,158.66,158.63,1.26057002]
[1721281119034,6.3024,158.67,158.63,1.26057002]
[1721281119534,6.3028,158.66,158.62,45.0]
[1721281119738,6.3032,158.65,158.6,6.3051]
[1721281120317,6.3032,158.65,158.61,12.22]
[1721281121143,6.3036,158.64,158.61,12.22]
[1721281121631,6.3032,158.65,158.61,12.22]
[1721281123037,1.57583833,158.66,158.61,12.22]
[1721281123236,7.87863833,158.66,158.61,18.5247]
[1721281123736,6.3032,158.65,158.61,12.22]
[1721281124623,6.3032,158.65,158.6,6.3048]
[1721281124830,6.3032,158.65,158.6,18.5248]
[1721281125341,13.79583833,158.66,158.61,6.3046]
[1721281126244,20.09873833,158.66,158.61,6.3046]
[1721281128331,20.09873833,158.66,158.62,1.26070382]
[1721281128837,20.09873833,158.66,158.61,18.5246]
[1721281129041,7.87873833,158.66,158.61,18.5246]
[1721281129249,7.87873833,158.66,158.62,1.2606429]
[1721281129633,1.57583833,158.66,158.62,1.2606429]
[1721281129828,1.57583833,158.66,158.61,18.5246]
[1721281130341,13.79583833,158.66,158.61,18.5246]
[1721281130844,20.09853833,158.66,158.61,18.5246]
[1721281132852,6.3027,158.66,158.61,19.78526943]
[1721281133233,6.3027,158.66,158.62,12.22]
[1721281134632,18.5224,158.67,158.62,19.78485752]
[1721281134951,13.7958219,158.68,158.63,12.22]
[1721281135128,13.7958219,158.68,158.64,1.26053372]
[1721281135327,35.05,158.69,158.64,19.78363372]
[1721281135535,24.40564144,158.69,158.64,19.78363372]
[1721281135741,16.3892,158.69,158.65,19.78351316]
[1721281136146,18.5215,158.7,158.65,19.78351316]
[1721281136346,6.3015,158.7,158.66,12.22]
[1721281136567,20.09688543,158.7,158.65,18.523]
[1721281136764,20.09688543,158.7,158.63,10.0]
[1721281136765,12.22,158.69,158.64,18.5235]
[1721281137746,13.79548296,158.69,158.64,18.5235]
[1721281138447,12.22,158.69,158.64,18.5235]
[1721281140473,12.22,158.69,158.64,12.22]
[1721281140640,6.3015,158.7,158.65,1.26038734]
[1721281140641,20.09698418,158.7,158.65,1.26038734]
[1721281140842,6.3019,158.69,158.65,1.26038734]
[1721281141157,6.3019,158.69,158.64,18.5235]
[1721281141158,18.5219,158.69,158.64,18.5235]
[1721281141339,6.3019,158.69,158.65,1.2604403]
[1721281141538,7.87745524,158.69,158.64,18.5235]
[1721281141844,6.3019,158.69,158.65,1.26044394]
[1721281142150,7.87745046,158.69,158.64,18.5235]
[1721281142338,6.5923,158.73,158.65,19.783444]
[1721281142339,1.575555,158.72,158.65,19.783444]
[1721281142542,1.575555,158.72,158.65,27.018044]
[1721281142749,6.3004,158.72,158.67,12.22]
[1721281142950,6.3013,158.7,158.65,15.7576]
[1721281143153,6.3013,158.7,158.65,27.9776]
[1721281143360,12.22,158.72,158.66,19.78305689]
[1721281143556,18.5204,158.72,158.67,12.22]
[1721281143861,18.5204,158.72,158.68,1.26020727]
[1721281144050,18.5204,158.72,158.66,63.5227]
[1721281144256,18.5204,158.72,158.67,1.26023801]
[1721281144463,16.5675,158.74,158.68,25.7549]
[1721281144647,12.22,158.75,158.7,6.3011]
[1721281145047,12.22,158.74,158.7,6.3011]
[1721281145249,18.5193,158.75,158.7,6.3011]
[1721281145850,1.57493877,158.74,158.68,15.7549]
[1721281146064,1.57493877,158.74,158.68,12.22]
[1721281146065,6.3009,158.71,158.68,12.22]
[1721281146270,12.22,158.73,158.68,12.22]
[1721281146486,12.22,158.74,158.69,1.26008031]
[1721281146647,12.22,158.74,158.69,12.22]
[1721281148176,6.3001,158.73,158.68,6.3019]
[1721281148361,6.3001,158.73,158.69,58.48002279]
[1721281148664,2.38772785,158.76,158.69,64.78152279]
[1721281148665,12.22,158.75,158.69,64.78152279]
[1721281148870,12.22,158.75,158.69,63.5215]
[1721281149071,1.57496848,158.74,158.69,63.5215]
[1721281149648,6.3,158.73,158.69,57.22]
[1721281150088,6.3004,158.72,158.69,12.22]
[1721281150253,2.38761807,158.76,158.66,31.8433]
[1721281150254,18.5209,158.71,158.68,1.26023281]
[1721281150753,18.5203,158.73,158.68,13.48023281]
[1721281151170,12.22,158.73,158.68,13.48023281]
[1721281151482,18.52,158.73,158.68,19.78213281]
[1721281151684,18.52,158.73,158.68,7.56213281]
[1721281152057,18.52,158.73,158.69,45.0]
[1721281152251,18.52,158.73,158.7,1.26001342]
[1721281152464,18.52,158.73,158.67,18.5223]
[1721281152651,12.22,158.72,158.68,45.0]
[1721281153681,12.22,158.72,158.68,51.3018]
[1721281153863,18.52,158.73,158.68,51.3018]
[1721281154065,12.22,158.73,158.69,1.26008168]
[1721281154574,18.5196,158.74,158.69,7.56158168]
[1721281154960,12.22,158.73,158.69,7.56158168]
[1721281155359,12.22,158.72,158.68,51.3019]
[1721281155754,12.22,158.73,158.69,6.3015]
[1721281156178,12.22,158.73,158.7,1.2600083]
[1721281156478,12.22,158.74,158.71,1.26000505]
[1721281157754,12.22,158.74,158.7,6.3011]
[1721281158078,12.22,158.74,158.69,28.5215]
[1721281158079,18.5196,158.74,158.69,28.5215]
[1721281158384,12.22,158.73,158.7,45.0]
[1721281158568,6.2996,158.74,158.7,45.0]
[1721281158768,12.22,158.73,158.7,45.0]
[1721281160071,6.2996,158.74,158.72,6.3004]
[1721281160072,12.22,158.74,158.72,6.3004]
[1721281160257,12.22,158.74,158.7,60.7521]
[1721281160258,12.22,158.74,158.71,6.3007]
[1721281160655,12.22,158.74,158.7,15.7521]
[1721281160883,2.38751016,158.76,158.67,6.3023]
[1721281160884,6.3004,158.72,158.67,6.3023]
[1721281161173,12.22,158.73,158.68,46.26008029]
[1721281161373,12.22,158.73,158.68,52.56198029]
[1721281161783,12.22,158.72,158.68,52.56198029]
[1721281162350,12.22,158.72,158.69,6.3015]
[1721281162557,12.22,158.72,158.7,1.26008118]
[1721281162755,12.22,158.73,158.71,1.25997889]
[1721281162962,12.22,158.73,158.7,6.3011]
[1721281163154,12.22,158.73,158.69,6.3015]
[1721281163578,12.22,158.73,158.7,1.26004287]
[1721281163770,12.22,158.73,158.71,1.26002475]
[1721281164464,12.22,158.73,158.7,6.301]
[1721281164673,12.22,158.71,158.68,15.754]
[1721281165565,18.5204,158.72,158.68,15.754]
[1721281165767,12.22,158.71,158.68,15.754]
[1721281166174,12.22,158.71,158.68,17.01421156]
[1721281166484,12.22,158.71,158.68,23.31611156]
[1721281168466,12.22,158.72,158.68,23.31611156]
[1721281168867,12.22,158.72,158.69,6.3015]
[1721281169171,12.22,158.73,158.69,6.3015]
[1721281170586,12.22,158.72,158.69,6.3015]
[1721281170791,12.22,158.73,158.69,6.3015]
[1721281171887,12.22,158.73,158.7,6.3011]
[1721281172077,12.22,158.74,158.71,6.3004]
[1721281172386,12.22,158.74,158.72,1.2598666]
[1721281172581,12.22,158.74,158.71,6.3004]
[1721281173599,12.22,158.74,158.7,15.7522]
[1721281173600,2.38787074,158.76,158.72,6.3002]
[1721281173774,13.0325976,158.76,158.72,7.56009425]
[1721281174088,13.0325976,158.76,158.72,6.3002]
[1721281174292,12.22,158.75,158.72,6.3002]
[1721281174682,12.22,158.75,158.7,27.9722]
[1721281174683,12.22,158.74,158.7,15.7522]
[1721281176195,7.1113976,158.76,158.7,15.7522]
[1721281176196,12.22,158.75,158.7,15.7522]
[1721281176970,12.22,158.75,158.71,6.3007]
[1721281177170,12.22,158.74,158.71,6.3007]
[1721281178298,12.22,158.74,158.7,15.7522]
[1721281178510,12.22,158.71,158.68,1.26003488]
[1721281178993,12.22,158.72,158.69,6.3015]
[1721281179503,12.22,158.72,158.7,1.26008824]
[1721281179674,12.22,158.72,158.7,7.56118824]
[1721281180297,12.22,158.72,158.69,6.3015]
[1721281181496,12.22,158.72,158.68,6.3019]
[1721281183882,12.22,158.72,158.69,6.3015]
[1721281184282,12.22,158.72,158.67,27.9759]
[1721281184283,12.22,158.72,158.67,22.0579]
[1721281184808,12.22,158.72,158.68,6.3018]
[1721281185186,12.22,158.71,158.68,6.3018]
[1721281187012,9.4451976,158.87,158.81,6.2966]
[1721281187221,9.4451976,158.87,158.81,22.0377]
[1721281187222,12.22,158.84,158.81,22.0377]
[1721281187506,12.22,158.84,158.81,15.7413]
[1721281187704,12.22,158.84,158.81,22.0377]
[1721281188085,12.22,158.83,158.81,22.0377]
[1721281188289,9.4451976,158.87,158.81,22.0377]
[1721281188499,12.22,158.83,158.82,7.55553207]
[1721281189187,3.1504976,158.87,158.82,6.2964]
[1721281189393,12.22,158.84,158.83,1.25904075]
[1721281189709,12.22,158.84,158.82,7.55545977]
[1721281190303,12.22,158.84,158.83,6.296]